[Event "Chpt Reg Jeunes Occitanie 2026 - Espalion"]
[Site "Espalion, France"]
[Round "4.19"]
[ECO "?"]
[Annotator "?"]
[TimeControl "1h30 + 30sec/cp"]

1. c3 {[%clk 1:30:59][%emt 0:00:01]} 1... Nc6 {[%clk 1:30:20][%emt 0:00:40]}
2. d4 {[%clk 1:30:55][%emt 0:00:34]} 2... e5 {[%clk 1:30:44][%emt 0:00:06]} 3.
Nf3 {[%clk 1:30:35][%emt 0:00:50]} 3... e4 {[%clk 1:29:14][%emt 0:02:00]} 4.
Nfd2 {[%clk 1:29:30][%emt 0:01:34]} 4... d5 {[%clk 1:27:50][%emt 0:01:54]} 5.
e3 {[%clk 1:28:57][%emt 0:01:04]} 5... Nce7 {[%clk 1:27:10][%emt 0:01:11]} 6.
c4 {[%clk 1:28:45][%emt 0:00:42]} 6... c6 {[%clk 1:27:09][%emt 0:00:30]} 7.
Nc3 {[%clk 1:27:52][%emt 0:01:23]} 7... Nf6 {[%clk 1:24:35][%emt 0:03:04]} 8.
f3 {[%clk 1:25:48][%emt 0:02:34]} 8... Nf5 {[%clk 1:22:38][%emt 0:02:26]} 9.
Nb3 {[%clk 1:20:02][%emt 0:06:16]} 9... a5 {[%clk 1:20:37][%emt 0:02:32]} 10.
g4 {[%clk 1:15:14][%emt 0:05:17]} 10... Nh4 {[%clk 1:16:14][%emt 0:04:53]} 11.
Nd2 {[%clk 1:14:39][%emt 0:01:05]} 11... exf3 {[%clk 0:54:57][%emt 0:21:47]}
12. g5 {[%clk 1:10:09][%emt 0:05:00]} 12... f2+ {[%clk 0:49:15][%emt 0:06:12]}
13. Kxf2 {[%clk 1:08:33][%emt 0:02:06]} 13... Ng4+ {[%clk 0:48:54][%emt
0:00:51]} 14. Ke1 {[%clk 1:07:01][%emt 0:02:02]} 14... Be7 {[%clk
0:47:44][%emt 0:01:41]} 15. Nf3 {[%clk 1:06:30][%emt 0:01:00]} 15... Bxg5
{[%clk 0:46:41][%emt 0:01:33]} 16. Nxg5 {[%clk 1:03:35][%emt 0:03:25]} 16...
Qxg5 {[%clk 0:46:52][%emt 0:00:20]} 17. Rg1 {[%clk 1:03:17][%emt 0:00:48]}
17... Qf5 {[%clk 0:46:17][%emt 0:01:05]} 18. Qe2 {[%clk 1:00:24][%emt 0:03:23]}
 18... Nf3+ {[%clk 0:45:03][%emt 0:01:44]} 19. Kd1 {[%clk 0:59:34][%emt
0:01:20]} 19... Nxg1 {[%clk 0:44:33][%emt 0:00:59]} 20. Qg2 {[%clk
0:57:14][%emt 0:02:50]} 20... Nf2+ {[%clk 0:44:18][%emt 0:00:45]} 21. Ke1
{[%clk 0:53:33][%emt 0:04:11]} 21... Nf3+ {[%clk 0:44:16][%emt 0:00:32]} 22.
Ke2 {[%emt 0:00:41]} 22... Qc2+ {[%clk 0:40:25][%emt 0:04:06]} 23. Kxf3 {[%clk
0:51:54][%emt 0:02:14]} 23... Bg4+ {[%clk 0:40:05][%emt 0:00:50]} 24. Kg3
{[%clk 0:51:20][%emt 0:01:03]} 24... h5 {[%clk 0:35:22][%emt 0:05:14]} 25.
Qxf2 {[%clk 0:50:36][%emt 0:01:14]} 25... Qg6 {[%clk 0:34:58][%emt 0:00:53]}
26. h4 {[%clk 0:49:45][%emt 0:01:20]} 26... Qe6 {[%clk 0:32:32][%emt 0:02:57]}
27. c5 {[%clk 0:48:28][%emt 0:01:48]} 27... g5 {[%clk 0:32:19][%emt 0:00:43]}
28. Bg2 {[%clk 0:43:15][%emt 0:05:43]} 28... Rg8 {[%clk 0:31:02][%emt 0:01:46]}
 29. Kh2 {[%clk 0:41:36][%emt 0:02:09]} 29... O-O-O {[%clk 0:30:04][%emt
0:01:28]} 30. e4 {[%clk 0:41:27][%emt 0:00:40]} 30... gxh4 {[%clk
0:28:57][%emt 0:01:36]} 31. Bg5 {[%clk 0:41:19][%emt 0:00:39]} 31... Rxg5
{[%clk 0:29:06][%emt 0:00:20]} 32. exd5 {[%clk 0:40:48][%emt 0:01:01]} 32...
cxd5 {[%clk 0:28:47][%emt 0:00:50]} 33. Nb5 {[%clk 0:40:48][%emt 0:00:30]}
33... h3 {[%clk 0:27:22][%emt 0:01:55]} 34. Qf4 {[%clk 0:39:51][%emt 0:01:25]}
34... Kd7 {[%clk 0:23:45][%emt 0:04:08]} 35. Qc7+ {[%clk 0:36:49][%emt
0:03:32]} 35... Ke8 {[%clk 0:23:02][%emt 0:01:14]} 36. Nd6+ {[%clk
0:37:02][%emt 0:00:17]} 36... Rxd6 {[%clk 0:22:39][%emt 0:00:52]} 37. cxd6
{[%clk 0:37:03][%emt 0:00:29]} 37... Qd7 {[%clk 0:22:48][%emt 0:00:21]} 38.
Re1+ {[%clk 0:37:05][%emt 0:00:26]} 38... Kf8 {[%clk 0:20:48][%emt 0:02:31]}
39. Qxd7 {[%clk 0:37:05][%emt 0:00:31]} 39... Bxd7 {[%clk 0:20:56][%emt
0:00:22]} 40. Bxh3 {[%clk 0:37:16][%emt 0:00:18]} 40... f5 {[%clk
0:20:21][%emt 0:01:06]} 41. Re5 {[%clk 0:37:10][%emt 0:00:36]} 41... Rg6
{[%clk 0:19:27][%emt 0:01:24]} 42. Rxd5 {[%clk 0:36:21][%emt 0:01:19]} 42...
b6 {[%clk 0:18:44][%emt 0:01:14]} 43. Bxf5 {[%clk 0:36:03][%emt 0:00:47]}
43... Rg5 {[%clk 0:18:50][%emt 0:00:24]} 44. Rxa5 {[%clk 0:34:24][%emt
0:02:09]} 44... bxa5 {[%clk 0:18:30][%emt 0:00:50]} 45. Bxd7 {[%clk
0:34:26][%emt 0:00:28]} 45... Rd5 {[%clk 0:18:25][%emt 0:00:35]} 46. Bc6
{[%clk 0:34:12][%emt 0:00:43]} 46... Rxd6 {[%clk 0:18:39][%emt 0:00:16]} 47.
Bf3 {[%clk 0:34:17][%emt 0:00:22]} 47... Rxd4 {[%clk 0:18:53][%emt 0:00:19]}
48. Kg3 {[%emt 0:02:09]} 48... Rd2 {[%clk 0:18:48]} 49. Kh4 {[%clk
0:33:19][%emt 0:00:24]} 49... Rxb2 {[%clk 0:19:10][%emt 0:00:09]} 50. Bd5
{[%clk 0:33:36][%emt 0:00:13]} 50... Ke7 {[%clk 0:19:25][%emt 0:00:15]} 51.
Bb3 {[%clk 0:33:13][%emt 0:00:53]} 51... Kd6 {[%clk 0:19:44][%emt 0:00:12]}
52. Kxh5 {[%clk 0:33:21][%emt 0:00:22]} 52... Kc5 {[%clk 0:20:05][%emt
0:00:09]} 53. Kg4 {[%clk 0:33:43][%emt 0:00:07]} 53... Kb4 {[%clk
0:20:30][%emt 0:00:05]} 54. Be6 {[%clk 0:32:11][%emt 0:02:02]} 54... Ka3
{[%clk 0:20:48][%emt 0:00:13]} 55. Kf3 {[%clk 0:32:24][%emt 0:00:17]} 55...
Rxa2 {[%clk 0:21:09][%emt 0:00:09]} 56. Ke3 {[%clk 0:32:19][%emt 0:00:35]}
56... Rb2 {[%clk 0:21:26][%emt 0:00:12]} 57. Kd3 {[%clk 0:32:33][%emt 0:00:17]}
 57... Kb4 {[%clk 0:21:41][%emt 0:00:15]} 58. Bd7 {[%clk 0:31:56][%emt
0:01:07]} 58... a4 {[%clk 0:22:03][%emt 0:00:09]} 59. Be6 {[%clk 0:31:43][%emt
0:00:43]} 59... Rb3+ {[%clk 0:22:21][%emt 0:00:12]} 60. Kc2 {[%clk
0:31:31][%emt 0:00:42]} 60... Rg3 {[%clk 0:22:00][%emt 0:00:51]} 61. Bd5
{[%clk 0:31:03][%emt 0:00:58]} 61... a3 {[%clk 0:22:16][%emt 0:00:14]} 62. Kb1
{[%clk 0:31:24][%emt 0:00:09]} 62... Rg1+ {[%clk 0:22:37][%emt 0:00:09]} 63.
Ka2 {[%clk 0:31:44][%emt 0:00:11]} 63... Rd1 {[%clk 0:22:49][%emt 0:00:17]}
64. Be6 {[%clk 0:31:20][%emt 0:00:54]} 64... Rd2+ {[%clk 0:23:09][%emt
0:00:10]} 65. Kb1 {[%clk 0:31:39][%emt 0:00:11]} 65... Kc3 {[%clk
0:23:06][%emt 0:00:34]} 66. Bf7 {[%clk 0:30:48][%emt 0:01:21]} 66... Rd1+
{[%clk 0:22:46][%emt 0:00:50]} 67. Ka2 {[%clk 0:31:05][%emt 0:00:12]} 67...
Rh1 {[%clk 0:22:40][%emt 0:00:36]} 68. Bg6 {[%clk 0:30:41][%emt 0:00:54]}
68... Kb4 {[%clk 0:22:28][%emt 0:00:42]} 69. Bf7 {[%clk 0:30:39][%emt 0:00:32]}
 69... Rh7 {[%clk 0:22:04][%emt 0:00:54]} 70. Bg8 {[%clk 0:30:37][%emt
0:00:32]} 70... Rc7 {[%clk 0:22:02][%emt 0:00:32]} 71. Bb3 {[%clk
0:30:31][%emt 0:00:36]} 71... Rc3 {[%clk 0:22:02][%emt 0:00:30]} 72. Bg8
{[%clk 0:30:02][%emt 0:00:58]} 72... Rc2+ {[%clk 0:22:24][%emt 0:00:08]} 73.
Kb1 {[%clk 0:30:14][%emt 0:00:18]} 73... Kc3 {[%clk 0:22:40][%emt 0:00:15]}
74. Bf7 {[%clk 0:30:04][%emt 0:00:40]} 74... Rf2 {[%clk 0:22:28][%emt 0:00:42]}
 75. Bg8 {[%clk 0:30:00][%emt 0:00:31]} 75... Rb2+ {[%clk 0:20:41][%emt
0:02:19]} 76. Ka1 {[%clk 0:30:19][%emt 0:00:12]} 76... Kc2 {[%clk
0:21:05][%emt 0:00:06]} 77. Bh7+ {[%clk 0:30:08][%emt 0:00:36]} 77... Kc1
{[%clk 0:21:24][%emt 0:00:15]} 78. Bg6 {[%clk 0:30:16][%emt 0:00:22]} 78... a2
{[%clk 0:21:33][%emt 0:00:21]} 79. Bh7 {[%clk 0:30:22][%emt 0:00:24]} 79...
Rh2 {[%clk 0:20:46][%emt 0:01:17]} 80. Bg8 {[%clk 0:30:12][%emt 0:00:40]}
80... Kc2 {[%clk 0:21:02][%emt 0:00:15]} 81. Kxa2 {[%clk 0:30:08][%emt
0:00:34]} 81... Rh8 {[%clk 0:21:10][%emt 0:00:21]} 82. Bb3+ {[%clk
0:30:26][%emt 0:00:12]} 82... Kc3 {[%clk 0:21:26][%emt 0:00:15]} 83. Bd5
{[%clk 0:30:14][%emt 0:00:42]} 83... Rh2+ {[%clk 0:21:31][%emt 0:00:24]} 84.
Ka3 {[%clk 0:30:30][%emt 0:00:15]} 84... Rh5 {[%clk 0:21:54][%emt 0:00:07]}
85. Bb3 {[%clk 0:30:31][%emt 0:00:29]} 85... Ra5+ {[%clk 0:22:15][%emt
0:00:09]} 86. Ba4 {[%clk 0:30:47][%emt 0:00:13]} 86... Ra8 {[%clk
0:22:40][%emt 0:00:06]} 87. Ka2 {[%clk 0:30:45][%emt 0:00:33]} 87... Rxa4+
{[%clk 0:23:01][%emt 0:00:09]} 88. Kb1 {[%clk 0:31:09][%emt 0:00:05]} 88...
Ra3 {[%clk 0:23:23][%emt 0:00:09]} 89. Kc1 {[%clk 0:31:28][%emt 0:00:11]}
89... Ra1# {[%clk 0:23:51][%emt 0:00:02]} 0-1

[White "AMRANE, Samy-Islam"]
[Black "ESTEBAN SALAZAR, Hector"]
[WhiteElo "1809"]
[BlackElo "1502"]
[Result "1-0"]
[Date "2026.03.05"]

[Event "Chpt Reg Jeunes Occitanie 2026 - Espalion"]
[Site "Espalion, France"]
[Round "4.20"]
[ECO "?"]
[Annotator "?"]
[TimeControl "1h30 + 30sec/cp"]

1. e4 {[%clk 1:30:58][%emt 0:00:02]} 1... e5 {[%clk 1:30:53][%emt 0:00:07]} 2.
Nf3 {[%clk 1:31:18][%emt 0:00:09]} 2... Nc6 {[%clk 1:31:15][%emt 0:00:08]} 3.
Bc4 {[%clk 1:31:40][%emt 0:00:07]} 3... Bc5 {[%clk 1:31:34][%emt 0:00:13]} 4.
c3 {[%clk 1:32:02][%emt 0:00:08]} 4... Nf6 {[%clk 1:29:27][%emt 0:02:36]} 5.
d4 {[%clk 1:32:24][%emt 0:00:09]} 5... exd4 {[%clk 1:28:19][%emt 0:01:38]} 6.
cxd4 {[%clk 1:32:42][%emt 0:00:12]} 6... Bb4+ {[%clk 1:26:22][%emt 0:02:27]}
7. Bd2 {[%clk 1:31:53][%emt 0:01:19]} 7... Nxe4 {[%clk 1:21:05][%emt 0:05:47]}
8. Bxb4 {[%clk 1:31:40][%emt 0:00:44]} 8... Nxb4 {[%clk 1:21:03][%emt 0:00:31]}
 9. Bxf7+ {[%clk 1:31:59][%emt 0:00:11]} 9... Kxf7 {[%clk 1:20:32][%emt
0:01:01]} 10. Qb3+ {[%clk 1:32:23][%emt 0:00:06]} 10... d5 {[%clk
1:20:45][%emt 0:00:17]} 11. Qxb4 {[%clk 1:32:37][%emt 0:00:16]} 11... Rf8
{[%clk 1:20:22][%emt 0:00:53]} 12. O-O {[%clk 1:32:41][%emt 0:00:25]} 12...
Kg8 {[%clk 1:19:55][%emt 0:00:50]} 13. Qb3 {[%clk 1:32:09][%emt 0:01:10]}
13... c6 {[%clk 1:15:33][%emt 0:04:53]} 14. Re1 {[%clk 1:31:27][%emt 0:01:08]}
14... Kh8 {[%clk 1:15:16][%emt 0:00:50]} 15. Nbd2 {[%clk 1:30:09][%emt
0:01:48]} 15... Nxd2 {[%clk 1:09:51][%emt 0:05:54]} 16. Nxd2 {[%clk
1:29:36][%emt 0:01:02]} 16... Qf6 {[%clk 1:04:12][%emt 0:06:11]} 17. Qf3
{[%clk 1:28:41][%emt 0:01:24]} 17... Qxf3 {[%clk 0:58:21][%emt 0:06:22]} 18.
Nxf3 {[%clk 1:28:57][%emt 0:00:14]} 18... Bg4 {[%clk 0:53:13][%emt 0:05:37]}
19. Ne5 {[%clk 1:29:04][%emt 0:00:24]} 19... Rf4 {[%clk 0:46:34][%emt 0:07:09]}
 20. Nxg4 {[%clk 1:28:40][%emt 0:00:55]} 20... Rxg4 {[%clk 0:45:59][%emt
0:01:04]} 21. Rad1 {[%clk 1:29:04][%emt 0:00:06]} 21... Rd8 {[%clk
0:45:11][%emt 0:01:17]} 22. Re7 {[%clk 1:29:24][%emt 0:00:11]} 22... Rb8
{[%clk 0:43:12][%emt 0:02:29]} 23. f3 {[%clk 1:29:03][%emt 0:00:52]} 23... Rf4
{[%clk 0:42:54][%emt 0:00:47]} 24. Kf2 {[%clk 1:29:05][%emt 0:00:27]} 24...
Kg8 {[%clk 0:43:00][%emt 0:00:24]} 25. g3 {[%clk 1:28:56][%emt 0:00:39]} 25...
Rf7 {[%clk 0:43:15][%emt 0:00:14]} 26. Rde1 {[%clk 1:29:05][%emt 0:00:21]}
26... Kf8 {[%emt 0:00:52]} 27. Rxf7+ {[%clk 1:29:21]} 27... Kxf7 {[%clk
0:43:23][%emt 0:00:16]} 28. Re5 {[%clk 1:29:27][%emt 0:00:23]} 28... Re8
{[%clk 0:42:02][%emt 0:01:51]} 29. Rxe8 {[%clk 1:29:49][%emt 0:00:09]} 29...
Kxe8 {[%clk 0:42:23][%emt 0:00:08]} 30. Ke3 {[%clk 1:30:10][%emt 0:00:08]}
30... Ke7 {[%clk 0:42:42][%emt 0:00:12]} 31. h4 {[%clk 1:30:34][%emt 0:00:07]}
31... b6 {[%clk 0:42:38][%emt 0:00:34]} 32. b4 {[%clk 1:30:50][%emt 0:00:14]}
32... Kd6 {[%clk 0:42:39][%emt 0:00:29]} 33. f4 {[%clk 1:31:12][%emt 0:00:08]}
33... c5 {[%clk 0:42:29][%emt 0:00:40]} 34. bxc5+ {[%clk 1:31:28][%emt
0:00:13]} 34... bxc5 {[%clk 0:42:42][%emt 0:00:18]} 35. dxc5+ {[%clk
1:31:52][%emt 0:00:07]} 35... Kxc5 {[%clk 0:43:01][%emt 0:00:11]} 36. Kd3
{[%clk 1:32:02][%emt 0:00:20]} 36... d4 {[%clk 0:42:56][%emt 0:00:35]} 37. g4
{[%clk 1:32:25][%emt 0:00:07]} 37... Kd5 {[%clk 0:41:51][%emt 0:01:35]} 38. g5
{[%clk 1:32:43][%emt 0:00:12]} 38... g6 {[%clk 0:41:21][%emt 0:01:00]} 39. f5
{[%clk 1:32:26][%emt 0:00:47]} 39... gxf5 {[%clk 0:41:29][%emt 0:00:21]} 40.
h5 {[%clk 1:32:51][%emt 0:00:05]} 40... Ke6 {[%clk 0:41:31][%emt 0:00:28]} 41.
Kxd4 {[%clk 1:33:11][%emt 0:00:10]} 41... h6 {[%clk 0:40:49][%emt 0:01:12]}
42. g6 {[%clk 1:33:27][%emt 0:00:14]} 42... Kf6 {[%clk 0:41:09][%emt 0:00:09]}
43. Kd5 {[%clk 1:33:52][%emt 0:00:04]} 43... a5 {[%clk 0:41:26][%emt 0:00:16]}
44. a4 {[%clk 1:34:14][%emt 0:00:08]} 44... Kg7 {[%emt 0:00:33]} 45. Ke5 f4
{[%clk 0:41:38][%emt 0:00:19]} 46. Kxf4 {[%clk 1:35:04][%emt 0:00:04]} 46...
Kf6 {[%clk 0:42:00][%emt 0:00:08]} 47. Ke4 {[%clk 1:35:31][%emt 0:00:04]} 1-0

[White "BENYETTOU, Louis"]
[Black "BAROUKH, Pau"]
[WhiteElo "1841"]
[BlackElo "1712"]
[Result "1-0"]
[Date "2026.03.06"]

[Event "Chpt Reg Jeunes Occitanie 2026 - Espalion"]
[Site "Espalion, France"]
[Round "5.16"]
[ECO "?"]
[Annotator "?"]
[TimeControl "1h30 + 30sec/cp"]

1. e4 {[%clk 1:30:58][%emt 0:00:01]} 1... e6 {[%clk 1:30:50][%emt 0:00:10]} 2.
d4 {[%clk 1:31:21][%emt 0:00:07]} 2... d5 {[%clk 1:31:15][%emt 0:00:06]} 3.
Nc3 {[%clk 1:31:44][%emt 0:00:06]} 3... dxe4 {[%clk 1:31:20][%emt 0:00:26]} 4.
Nxe4 {[%clk 1:32:08][%emt 0:00:06]} 4... Nd7 {[%clk 1:31:41][%emt 0:00:09]} 5.
Nf3 {[%clk 1:32:32][%emt 0:00:06]} 5... Ngf6 {[%clk 1:31:29][%emt 0:00:42]} 6.
Bd3 {[%clk 1:32:47][%emt 0:00:14]} 6... Nxe4 {[%clk 1:31:18][%emt 0:00:41]} 7.
Bxe4 {[%clk 1:33:12][%emt 0:00:06]} 7... Nf6 {[%clk 1:31:39][%emt 0:00:08]} 8.
Bd3 {[%clk 1:33:36][%emt 0:00:06]} 8... Be7 {[%clk 1:31:11][%emt 0:00:58]} 9.
Bg5 {[%clk 1:33:23][%emt 0:00:43]} 9... O-O {[%clk 1:30:34][%emt 0:01:08]} 10.
Qe2 {[%clk 1:33:37][%emt 0:00:15]} 10... Nd5 {[%clk 1:28:13][%emt 0:02:52]}
11. Bxe7 {[%clk 1:32:44][%emt 0:01:23]} 11... Qxe7 {[%clk 1:28:36][%emt
0:00:07]} 12. h4 {[%clk 1:28:26][%emt 0:04:47]} 12... Qb4+ {[%clk
1:27:14][%emt 0:01:52]} 13. Qd2 {[%clk 1:24:45][%emt 0:04:11]} 13... Qxb2
{[%clk 1:26:06][%emt 0:01:38]} 14. O-O {[%clk 1:24:45][%emt 0:00:30]} 14...
Qc3 {[%clk 1:26:06][%emt 0:00:31]} 15. Qg5 {[%clk 1:21:33][%emt 0:03:41]}
15... h6 {[%clk 1:23:29][%emt 0:03:08]} 16. Qg3 {[%clk 1:20:20][%emt 0:01:42]}
16... Nb4 {[%clk 1:15:57][%emt 0:08:03]} 17. Bh7+ {[%clk 1:13:33][%emt
0:07:17]} 17... Kh8 {[%clk 1:15:41][%emt 0:00:46]} 18. a3 {[%clk 1:13:16][%emt
0:00:47]} 18... Nd5 {[%clk 1:11:57][%emt 0:04:14]} 19. Bd3 {[%clk
1:12:39][%emt 0:01:06]} 19... Nf6 {[%clk 0:56:55][%emt 0:15:33]} 20. Rab1
{[%clk 1:09:17][%emt 0:03:51]} 20... Qc6 {[%clk 0:52:50][%emt 0:04:35]} 21.
Ne5 {[%clk 0:55:21][%emt 0:14:27]} 21... Qd6 {[%clk 0:52:16][%emt 0:01:05]}
22. Qf4 {[%clk 0:54:34][%emt 0:01:14]} 22... Kg8 {[%clk 0:50:29][%emt 0:02:18]}
 23. g4 {[%clk 0:49:16][%emt 0:05:49]} 23... Nd5 {[%clk 0:48:14][%emt 0:02:46]}
 24. Qd2 {[%clk 0:40:40][%emt 0:09:06]} 24... f6 {[%clk 0:41:19][%emt 0:07:25]}
 25. Ng6 {[%clk 0:40:36][%emt 0:00:34]} 25... Re8 {[%clk 0:41:18][%emt
0:00:31]} 26. g5 {[%clk 0:37:17][%emt 0:03:48]} 26... fxg5 {[%clk
0:37:03][%emt 0:04:45]} 27. hxg5 {[%clk 0:32:53][%emt 0:04:53]} 27... h5
{[%clk 0:25:07][%emt 0:12:28]} 28. Qe2 {[%clk 0:30:53][%emt 0:02:29]} 28...
Nf4 {[%clk 0:25:12][%emt 0:00:26]} 29. Nxf4 {[%clk 0:31:08][%emt 0:00:14]}
29... Qxf4 {[%emt 0:00:07]} 30. Qxh5 {[%clk 0:31:03][%emt 0:00:30]} 30... Re7
{[%clk 0:25:10][%emt 0:01:01]} 31. Qh7+ {[%clk 0:31:07][%emt 0:00:25]} 31...
Kf8 {[%clk 0:25:33][%emt 0:00:07]} 32. Qh8+ {[%clk 0:30:58][%emt 0:00:39]}
32... Kf7 {[%clk 0:25:57][%emt 0:00:06]} 33. g6+ {[%clk 0:31:14][%emt 0:00:15]}
 33... Kf6 {[%clk 0:26:01][%emt 0:00:25]} 34. Qf8+ {[%clk 0:31:39][%emt
0:00:06]} 34... Kg5 {[%clk 0:26:25][%emt 0:00:06]} 35. Qxe7+ {[%clk
0:32:02][%emt 0:00:07]} 35... Kh6 {[%clk 0:26:28][%emt 0:00:27]} 36. Rfe1
{[%clk 0:31:29][%emt 0:01:03]} 36... Qg4+ {[%clk 0:26:10][%emt 0:00:48]} 37.
Kf1 {[%clk 0:31:53][%emt 0:00:05]} 37... Qh3+ {[%clk 0:26:12][%emt 0:00:28]}
38. Ke2 {[%clk 0:32:13][%emt 0:00:10]} 38... Qg4+ {[%clk 0:26:04][%emt
0:00:39]} 39. Kd2 {[%clk 0:32:32][%emt 0:00:10]} 1-0

[White "LABARBE, Gabriel"]
[Black "TOURETTE, Maxence"]
[WhiteElo "1731"]
[BlackElo "1709"]
[Result "1/2-1/2"]
[Date "2026.03.06"]

[Event "Chpt Reg Jeunes Occitanie 2026 - Espalion"]
[Site "Espalion, France"]
[Round "5.17"]
[ECO "?"]
[Annotator "?"]
[TimeControl "1h30 + 30sec/cp"]

1. e4 {[%clk 1:30:57][%emt 0:00:02]} 1... d6 {[%clk 1:30:31][%emt 0:00:29]} 2.
d4 {[%clk 1:31:19][%emt 0:00:08]} 2... Nf6 {[%clk 1:30:55][%emt 0:00:06]} 3.
Nc3 {[%clk 1:31:18][%emt 0:00:31]} 3... Nbd7 {[%clk 1:30:58][%emt 0:00:28]} 4.
Bc4 {[%clk 1:30:57][%emt 0:00:50]} 4... e5 {[%clk 1:30:55][%emt 0:00:33]} 5.
dxe5 {[%clk 1:27:48][%emt 0:03:40]} 5... dxe5 {[%clk 1:31:06][%emt 0:00:18]}
6. a3 {[%clk 1:25:17][%emt 0:03:01]} 6... c6 {[%clk 1:29:05][%emt 0:02:31]} 7.
Nf3 {[%clk 1:24:00][%emt 0:01:47]} 7... h6 {[%clk 1:27:56][%emt 0:01:39]} 8.
O-O {[%clk 1:23:13][%emt 0:01:18]} 8... Qc7 {[%clk 1:26:15][%emt 0:02:11]} 9.
Qe2 {[%clk 1:19:39][%emt 0:04:03]} 9... g5 {[%clk 1:23:42][%emt 0:03:03]} 10.
Rd1 {[%clk 1:18:45][%emt 0:01:24]} 10... Be7 {[%clk 1:22:22][%emt 0:01:50]}
11. Be3 {[%clk 1:11:14][%emt 0:08:00]} 11... Nf8 {[%clk 1:16:25][%emt 0:06:28]}
 12. b4 {[%clk 1:10:04][%emt 0:01:40]} 12... Be6 {[%clk 1:15:21][%emt 0:01:35]}
 13. b5 {[%clk 1:08:48][%emt 0:01:45]} 13... g4 {[%clk 1:12:12][%emt 0:03:39]}
14. Ne1 {[%clk 1:06:16][%emt 0:03:01]} 14... Ng6 {[%clk 1:05:52][%emt 0:06:52]}
 15. Bxe6 {[%clk 1:05:32][%emt 0:01:13]} 15... fxe6 {[%clk 1:06:07][%emt
0:00:15]} 16. bxc6 {[%clk 1:04:44][%emt 0:01:18]} 16... Qxc6 {[%clk
1:04:37][%emt 0:02:01]} 17. Qb5 {[%clk 1:03:49][%emt 0:01:25]} 17... Rc8
{[%clk 1:04:10][%emt 0:00:57]} 18. Qxc6+ {[%clk 1:01:37][%emt 0:02:42]} 18...
Rxc6 {[%clk 1:04:24][%emt 0:00:16]} 19. Bd2 {[%clk 1:02:03][%emt 0:00:04]}
19... Nf4 {[%clk 1:03:52][%emt 0:01:01]} 20. Nd3 {[%clk 1:00:55][%emt 0:01:36]}
 20... Rxc3 {[%clk 1:00:43][%emt 0:03:41]} 21. Bxc3 {[%clk 1:00:34][%emt
0:00:51]} 21... Ne2+ {[%clk 1:00:41][%emt 0:00:32]} 22. Kf1 {[%clk
0:59:56][%emt 0:01:01]} 22... Nxc3 {[%clk 1:00:44][%emt 0:00:34]} 23. Re1
{[%clk 1:00:08][%emt 0:00:18]} 23... Bd6 {[%clk 1:00:20][%emt 0:00:54]} 24. f3
{[%clk 1:00:14][%emt 0:00:24]} 24... gxf3 {[%clk 0:59:41][%emt 0:01:09]} 25.
gxf3 {[%clk 1:00:37][%emt 0:00:08]} 25... Rg8 {[%clk 0:59:03][%emt 0:01:07]}
26. Re3 {[%clk 0:59:04][%emt 0:02:00]} 26... Ke7 {[%clk 0:55:51][%emt 0:03:45]}
 27. Nf2 {[%clk 0:57:03][%emt 0:02:28]} 27... Rc8 {[%clk 0:54:17][%emt
0:02:08]} 28. Kg2 {[%clk 0:54:58][%emt 0:02:33]} 28... Rg8+ {[%clk
0:53:02][%emt 0:01:46]} 29. Kf1 {[%clk 0:54:46][%emt 0:00:42]} 29... Rc8
{[%clk 0:53:25][%emt 0:00:08]} 30. Kg2 {[%clk 0:55:11][%emt 0:00:05]} 30...
Rg8+ {[%emt 0:01:19]} 1/2-1/2

[White "CHIEZE, Theodore"]
[Black "AMRANE, Samy-Islam"]
[WhiteElo "1464"]
[BlackElo "1809"]
[Result "0-1"]
[Date "2026.03.06"]